Cogmind - Beta 16 @@@ ROGUE MODE // 2026.02.02 @ 23:12:31 Player: Bikerider58 Result: Self-destructed Performance ------------- Evolutions (5) 2500 Regions Visited (15) 3000 Robots Destroyed (175) 875 Value Destroyed (4630) 4630 Prototype IDs (19) 380 Alien Tech Used (0) 0 Bonus (813) 813 TOTAL SCORE: 12198 Bonus ------- High Alert Combat Kills 47 Follower Combat Kills 248 Registered with UFD 300 Met Optimus in HQ 500 Friendly Fire -282 Cogmind --------- Core Integrity 826/1000 Matter 300/300 Energy 144/150 System Corruption 0% Temperature Cool (12) Movement Flying (26) Location -5/Extension Parts ------- > --- POWER (1) -------- Micro Fission Core > --- PROPULSION (6) --- Cooled VTOL Module Cooled VTOL Module Cooled Cesium-ion Thruster Cooled Cesium-ion Thruster > --- UTILITY (7) ------ Medium Storage Unit Enhanced Optical Array Advanced Signal Interpreter Improved Hacking Suite Improved System Shield > --- WEAPON (3) ------- Heavy Flail > --- INVENTORY (10) --- Matter Compressor (250) Matter Filter Launcher Loader Authchip [Propulsion] Authchip [Propulsion] Improved Plasma Cutter CPS Tube (1) Peak State ------------ > --- POWER ------------ Micro Fission Core > --- PROPULSION ------- Cooled VTOL Module Cooled VTOL Module Cooled Cesium-ion Thruster Cooled Cesium-ion Thruster Nuclear Pulse Array > --- UTILITY ---------- Medium Storage Unit Experimental Sensor Array Advanced Signal Interpreter Hacking Suite Improved Hacking Suite Improved Hacking Suite Improved System Shield > --- WEAPON ----------- Heavy Flail Centrium Greatsword > --- INVENTORY -------- Matter Compressor Matter Filter Launcher Loader Improved Propulsion Shielding Authchip [Propulsion] Authchip [Propulsion] Authchip [Propulsion] Authchip [Weapon] CPS Tube [Rating: 96] Favorites ----------- Power Light Nuclear Core Engine Cooled Ion Engine Power Core Light Nuclear Core Propulsion Light Treads Treads Light Treads Wheel Wheel Hover Unit Aerolev Unit Flight Unit Improved VTOL Module Utility Hacking Suite Device Seismic Detector Storage Huge Storage Unit Processor Advanced Targeting Computer Hackware Hacking Suite Protection Reactive Plating Weapon Heavy Assault Rifle Energy Gun Advanced Beam Rifle Ballistic Gun Heavy Assault Rifle Ballistic Cannon Bore Cannon Launcher Smartbomb Launcher Special Weapon CPS Tube Impact Weapon Heavy Flail Slashing Weapon Scythe Special Melee Weapon Improved Datajack Build | -11 -10 -10 -9 -9 -9 -8 -8 -8 -8 -8 -6 -6 -6 -5 -5 ------- Run | Yrd Mat Min Mat Min Exi Min Mat Sto Rec Scr Fac Was Fac Fac Ext Slots Evolved 10 | . . . 2 . . . 2 . . . 4 . . 2 . Power . | . . . . . . . . . . . . . . . . Propulsion 4 | . . . 1 . . . 1 . . . 1 . . 1 . Utility 5 | . . . 1 . . . 1 . . . 3 . . . . Weapon 1 | . . . . . . . . . . . . . . 1 . Parts Attached 138 | 8 11 2 26 . . . 26 13 3 8 21 . 4 7 9 Power 12 | 1 2 1 2 . . . 2 2 . 1 . . . 1 . Engine 8 | 1 2 1 2 . . . 2 . . . . . . . . Core 4 | . . . . . . . . 2 . 1 . . . 1 . Reactor . | . . . . . . . . . . . . . . . . Propulsion 49 | 2 2 . 12 . . . 10 6 2 3 9 . 2 1 . Treads 33 | 2 2 . 11 . . . 10 5 2 1 . . . . . Leg . | . . . . . . . . . . . . . . . . Wheel 2 | . . . . . . . . . . 2 . . . . . Hover 2 | . . . . . . . . 1 . . 1 . . . . Flight 12 | . . . 1 . . . . . . . 8 . 2 1 . Utility 45 | 2 4 1 7 . . . 7 2 1 1 9 . 2 4 5 Device 13 | 2 3 1 2 . . . . . . 1 . . . . 4 Storage 4 | . 1 . 1 . . . . . . . 1 . . 1 . Processor 5 | . . . . . . . 2 . . . 1 . 1 . 1 Hackware 11 | . . . . . . . 1 . . . 7 . 1 2 . Protection 12 | . . . 4 . . . 4 2 1 . . . . 1 . Artifact . | . . . . . . . . . . . . . . . . Weapon 32 | 3 3 . 5 . . . 7 3 . 3 3 . . 1 4 Energy Gun 7 | 3 1 . . . . . . 2 . . . . . . 1 Energy Cannon . | . . . . . . . . . . . . . . . . Ballistic Gun 13 | . 2 . 5 . . . 5 1 . . . . . . . Ballistic Cannon 1 | . . . . . . . . . . . . . . . 1 Launcher 2 | . . . . . . . 1 . . . . . . . 1 Special Weapon 5 | . . . . . . . . . . 3 1 . . . 1 Impact Weapon 1 | . . . . . . . . . . . . . . 1 . Slashing Weapon 2 | . . . . . . . 1 . . . 1 . . . . Piercing Weapon . | . . . . . . . . . . . . . . . . Special Melee Weapon 1 | . . . . . . . . . . . 1 . . . . Unidentified Prototypes 13 | . . 1 4 . . . 1 3 . . 3 . 1 . . Parts Lost 20 | . 2 . 2 . . 1 5 1 1 . . . . 1 7 Power . | . . . . . . . . . . . . . . . . Propulsion 5 | . . . . . . . 3 . 1 . . . . . 1 Utility 9 | . 1 . 2 . . 1 . 1 . . . . . 1 3 Weapon 6 | . 1 . . . . . 2 . . . . . . . 3 Highest Loss Streak 3 | . 1 . 1 . . 1 1 1 1 . . . . 1 3 To Critical Strikes 1 | . . . . . . . 1 . . . . . . . . Average Backups 20 | . 10 15 17 24 25 25 24 25 24 23 10 10 9 8 7 Power . | . . . . . . . . . . . . . . . . Propulsion 5 | . 2 5 7 10 9 9 7 7 6 5 1 2 2 . . Utility 7 | . 5 7 4 5 5 7 6 9 10 9 4 3 4 7 5 Weapon 5 | . 2 2 5 8 8 8 7 6 5 4 1 1 . . . Tool/Special . | . . . . . . . . . . . . . . . . Unused Backups 51 | . 4 1 5 1 . . 8 5 . 8 9 . 3 3 4 Power . | . . . . . . . . . . . . . . . . Propulsion 9 | . . . . . . . . 4 . 1 3 . . 1 . Utility 22 | . 2 . 4 . . . 2 . . 3 5 . 1 2 3 Weapon 15 | . 2 1 1 1 . . 5 1 . 3 . . 1 . . Tool/Special 5 | . . . . . . . 1 . . 1 1 . 1 . 1 Average Slot Usage (%) 95 | . 98 100 99 100 100 98 99 99 99 89 94 93 93 85 85 Engine 4 | . 14 14 10 11 11 11 9 . . . . . . . . Core 4 | . . . . . . . . 8 9 9 6 6 6 5 5 Treads 28 | . 28 28 32 33 33 33 35 36 35 31 . . . . . Wheel 1 | . . . . . . . . . . 4 . . . . . Flight 4 | . . . . . . . . . . . 32 33 33 29 29 Device 5 | . 16 14 11 11 11 11 3 . . 2 5 6 6 4 6 Storage 8 | . 9 14 11 11 11 11 9 9 9 8 6 6 6 5 5 Processor 5 | . . . . . . . 9 9 9 9 6 6 6 5 7 Hackware 7 | . . . . . . . 8 9 9 9 25 26 26 21 12 Protection 6 | . . . 10 11 11 9 5 8 9 6 . . . 1 4 Energy Gun 2 | . 18 . . . . . . 4 5 . . . . . 1 Ballistic Gun 10 | . 9 28 22 22 22 22 17 11 8 . . . . . . Slashing Weapon 3 | . . . . . . . . 2 3 8 6 6 6 5 . Peak Build Rating 96 | 6 10 18 19 19 19 19 36 34 35 35 74 73 80 96 90 Average Rating 32 | 4 8 10 17 19 19 18 29 30 33 30 63 73 77 90 80 On Entrance 33 | . 6 10 11 19 19 19 17 34 32 30 30 73 73 80 87 Avg Prop Armor Cover (%) 23 | . . . . . . . . . . 23 . . . . . Naked Turns . | . . . . . . . . . . . . . . . . Heaviest Build 109 | 6 32 32 109 102 102 102 106 101 101 97 21 21 21 26 33 Greatest Support 82 | 40 40 40 60 60 60 60 82 82 82 82 25 25 27 37 37 Greatest Overweight (x) 9 | . . . 1 1 1 1 1 1 1 9 . . . . . Average Overweight (x) . | . . . . 1 1 1 1 1 1 1 . . . . . Largest Inventory Capacity 25 | 5 15 15 25 25 25 25 25 25 25 25 25 10 10 10 10 Average Capacity 21 | 5 12 15 20 25 25 25 25 25 25 23 10 10 10 10 10 Most Carried 25 | 1 15 15 25 25 25 25 25 25 25 25 24 10 10 10 10 Average Carried 20 | . 10 15 17 24 24 24 24 24 24 23 10 10 9 9 9 Final Capacity 25 | 5 15 15 25 25 25 25 25 25 25 25 10 10 10 10 10 Final Carried 25 | . 15 15 25 25 25 25 25 25 25 25 10 10 10 10 8 Class Distribution -------------------- 42% | Scavenger-Mutant 27% | Commander-Mutant 16% | Mutant 13% | Hacker-Sprinter Dominant Class ---------------- Mutant | -10/Materials Mutant | -10/Mines Scavenger-Mutant | -9/Materials Scavenger-Mutant | -9/Mines Scavenger-Mutant | -9/Exiles Scavenger-Mutant | -8/Mines Scavenger-Mutant | -8/Materials Scavenger-Mutant | -8/Storage Scavenger-Mutant | -8/Recycling Commander-Mutant | -8/Scraptown Hacker-Sprinter | -6/Factory Hacker-Sprinter | -6/Waste Hacker-Sprinter | -6/Factory Hacker-Sprinter | -5/Factory Hacker-Sprinter | -5/Extension Resources | -11 -10 -10 -9 -9 -9 -8 -8 -8 -8 -8 -6 -6 -6 -5 -5 ----------- Run | Yrd Mat Min Mat Min Exi Min Mat Sto Rec Scr Fac Was Fac Fac Ext Matter Collected 5678 | 280 302 46 918 37 . 188 1026 465 140 933 220 . 85 428 610 Remotely 530 | 27 . . . . . . . . . . . . . . 503 Salvage Created 7678 | 112 597 46 1408 . . 176 1739 1099 622 235 357 . 186 656 445 Parts 430 | 8 38 5 89 . . 9 96 70 29 24 21 . 8 21 12 Haulers Intercepted 23 | . 1 . 5 . . . 4 4 1 . 3 . 1 3 1 Recyclers Shooed 5 | . . . 1 . . 1 3 . . . . . . . . Parts Field Recycled 22 | . . . 22 . . . . . . . . . . . . Retrieved Matter 105 | . . . 105 . . . . . . . . . . . . Parts Self-Destructed . | . . . . . . . . . . . . . . . . Prevented . | . . . . . . . . . . . . . . . . Parts Restored . | . . . . . . . . . . . . . . . . Kills | -11 -10 -10 -9 -9 -9 -8 -8 -8 -8 -8 -6 -6 -6 -5 -5 ------- Run | Yrd Mat Min Mat Min Exi Min Mat Sto Rec Scr Fac Was Fac Fac Ext Combat Hostiles Destroyed 105 | . 15 3 20 . . 5 32 18 7 . . . 1 1 3 Melee 3 | . . . . . . . 1 . . . . . 1 1 . Guns 97 | . 15 3 20 . . 5 29 18 7 . . . . . . Cannons 2 | . . . . . . . . . . . . . . . 2 AOE 3 | . . . . . . . 2 . . . . . . . 1 Classes Destroyed 18 | 2 4 . 4 . . . 2 2 1 2 . . . . 1 Worker 7 | . 2 . 1 . . . 1 1 . . . . . 1 1 Builder 7 | . . . 2 . . . 2 1 . . . . . . 2 Tunneler 2 | 2 . . . . . . . . . . . . . . . Hauler 24 | . 1 . 5 . . . 4 4 1 1 3 . 1 3 1 Recycler 10 | 1 . . 3 . . . 1 1 1 . . . . 1 2 Mechanic 1 | . . . . . . . . 1 . . . . . . . Operator 8 | . . . 3 . . . . 2 . . 2 . . . 1 Watcher 8 | . . . . . . . . 2 . . . . 2 4 . Swarmer 21 | . 4 3 . . . 2 5 7 . . . . . . . Grunt 49 | . 11 . 12 . . 2 17 5 . . . . . . 2 Duelist 2 | . . . 1 . . 1 . . . . . . . . . Protector 1 | . . . . . . . 1 . . . . . . . . Sentry 26 | . . . 7 . . . 7 5 6 . . . . 1 . Demolisher 2 | . . . . . . . . . . 2 . . . . . Hunter 3 | . . . . . . . 2 1 . . . . . . . Programmer 2 | . . . . . . . . . 1 . . . 1 . . Behemoth 1 | . . . . . . . . . . . . . . . 1 Scrapoid 1 | . . . . . . . . . . 1 . . . . . Best Kill Streak 8 | 2 4 3 5 . . 2 5 8 5 . 1 . 2 2 3 Combat Bots Only 5 | . 3 3 4 . . 2 4 5 4 . . . 1 1 1 Max Kills in Single Turn 3 | 1 2 1 1 . . 1 3 2 2 1 1 . 1 1 1 Gunslinging . | . . . . . . . . . . . . . . . . Exploded 2 | . . . . . . . 2 . . . . . . . 1 Melee 1 | . . . . . . . 1 . . . . . 1 1 . Uniques/NPCs Destroyed . | . . . . . . . . . . . . . . . . Combat | -11 -10 -10 -9 -9 -9 -8 -8 -8 -8 -8 -6 -6 -6 -5 -5 -------- Run | Yrd Mat Min Mat Min Exi Min Mat Sto Rec Scr Fac Was Fac Fac Ext Hostile Shots Fired 650 | . 70 21 97 . . 42 184 81 40 . 16 . 13 27 59 Missed 192 | . 22 3 25 . . 14 34 26 7 . 11 . 8 8 34 Hits 458 | . 48 18 72 . . 28 150 55 33 . 5 . 5 19 25 Melee 13 | . . . . . . 5 3 . . . . . . 5 . Projectile 445 | . 48 18 72 . . 23 147 55 33 . 5 . 5 14 25 Critical Strikes 21 | . 2 . . . . . 10 4 2 . . . . 1 2 Damage Taken 6845 | . 541 147 975 . . 467 2239 694 447 . 50 . 70 485 730 Core 757 | . 31 32 67 . . 44 280 59 39 . 17 . 14 96 78 Absorbed by Shields . | . . . . . . . . . . . . . . . . Redirected to Shielding 102 | . . . . . . . . . . . . . . 49 53 Ignored by Resistances 77 | . . . . . . . 30 . 47 . . . . . . Regen/Repaired (Parts) 187 | . . . . . . . 132 . . . . . 55 . . Core Remaining (%) 74 | 100 . 74 . . . 72 . . . 31 . . 96 . . Volleys Fired 432 | 7 58 9 90 . . 29 95 61 19 4 . . . . 60 Largest 2 | 2 2 2 2 . . 2 2 2 2 1 . . . . 1 Hottest 89 | 80 80 46 46 . . 46 56 89 89 . . . . . 69 Shots Fired 799 | 14 116 18 180 . . 58 190 120 39 4 . . . . 60 Gun 736 | 14 116 18 180 . . 58 189 120 39 . . . . . 2 Cannon 52 | . . . . . . . . . . . . . . . 52 Launcher 6 | . . . . . . . 1 . . . . . . . 5 Special 5 | . . . . . . . . . . 4 . . . . 1 Kinetic 623 | . 26 18 180 . . 58 189 80 20 . . . . . 52 Thermal 165 | 14 90 . . . . . . 40 19 . . . . . 2 Explosive 6 | . . . . . . . 1 . . . . . . . 5 Electromagnetic . | . . . . . . . . . . . . . . . . Robot Hit Streak 26 | 5 9 3 18 . . 10 26 17 11 4 . . . . 8 Robot Miss Streak 4 | 1 4 2 3 . . 3 2 2 2 . . . . . 4 Penetration Max 1 | . . . . . . . 1 1 . . . . . . 1 Secondary Targets 7 | . 2 2 1 . . . 1 . 1 . . . . . . Max Gunslinging Chain 1 | . 1 1 1 . . . 1 . 1 . . . . . . Shots Hit Robots 643 | 11 72 10 136 . . 41 159 87 37 14 12 . 6 19 39 Core Hits 246 | 4 31 3 48 . . 9 65 39 11 4 5 . 2 7 18 Critical Kills 5 | . . . . . . . 1 . . . . . . . 4 Critical Parts Destroyed 11 | . . . . . . . . . . . . . . 1 10 Critical Strikes 33 | . . . . . . . 1 4 . 2 2 . . 3 21 Burn 4 | . . . . . . . . 4 . . . . . . . Destroy 22 | . . . . . . . 1 . . . . . . . 21 Smash 1 | . . . . . . . . . . . . . . 1 . Sever 6 | . . . . . . . . . . 2 2 . . 2 . Melee Attacks 178 | . . . . . . . 3 8 8 10 57 . 18 67 7 Impact 22 | . . . . . . . . . . . . . . 16 6 Slashing 152 | . . . . . . . 3 8 8 10 53 . 18 51 1 Piercing . | . . . . . . . . . . . . . . . . Sneak Attacks 37 | . . . . . . . . 3 2 10 7 . 2 11 2 Combat Hostiles 2 | . . . . . . . . . . . . . 1 1 . Follow-up Attacks 3 | . . . . . . . . . . . . . . 3 . Damage Inflicted 16492 | 132 952 144 2149 . . 614 3193 1996 1047 618 716 . 677 2095 2159 Guns 9224 | 128 920 144 2088 . . 610 2956 1726 612 . . . . . 40 Cannons 1034 | . . . . . . . . . . . . . . . 1034 Explosions 801 | . . . . . . . 173 . . . . . . . 628 Melee 5217 | . . . . . . . . 250 404 618 716 . 677 2095 457 Ramming 216 | 4 32 . 61 . . 4 64 20 31 . . . . . . Kinetic 8460 | . 255 144 2088 . . 610 2956 1106 267 . . . . . 1034 Thermal 1798 | 128 665 . . . . . . 620 345 . . . . . 40 Explosive 801 | . . . . . . . 173 . . . . . . . 628 Electromagnetic . | . . . . . . . . . . . . . . . . Impact 573 | . . . . . . . . . . . . . . 116 457 Slashing 4644 | . . . . . . . . 250 404 618 716 . 677 1979 . Piercing . | . . . . . . . . . . . . . . . . Highest Corruption 9 | . . . . . . . . . 2 . . 7 9 . . Average Corruption 3 | . . . . . . . . . 2 . . 7 8 . . Corruption Purged . | . . . . . . . . . . . . . . . . Corruption Blocked . | . . . . . . . . . . . . . . . . Effects 28 | . . . . . . . . . 15 . . . 13 . . Message Errors 3 | . . . . . . . . . 3 . . . . . . Matter Fused 10 | . . . . . . . . . 5 . . . 5 . . Heat Flow Errors 2 | . . . . . . . . . 1 . . . 1 . . Energy Discharges 2 | . . . . . . . . . . . . . 2 . . Data Loss (minor) 8 | . . . . . . . . . 5 . . . 3 . . Data Loss (major) 2 | . . . . . . . . . . . . . 2 . . Misfires 1 | . . . . . . . . . 1 . . . . . . Overload Shots . | . . . . . . . . . . . . . . . . Overflow Damage 956 | . . . 2 . . . 7 . 25 . . . 160 482 280 Projectiles 3 | . . . . . . . . . . . . . . . 3 Explosions 36 | . . . . . . . 7 . . . . . . . 29 Melee 917 | . . . 2 . . . . . 25 . . . 160 482 248 Knockbacks 3 | . . . . . . . 3 . . . . . . . . Impact 3 | . . . . . . . 3 . . . . . . . . Kinetic . | . . . . . . . . . . . . . . . . Secondary . | . . . . . . . . . . . . . . . . Self-Inflicted Damage . | . . . . . . . . . . . . . . . . Shots . | . . . . . . . . . . . . . . . . Rammed 24 | 1 4 . 3 . . 1 10 2 3 . . . . . . Targets Rammed 29 | 1 4 . 6 . . 1 12 2 3 . . . . . . Kicked . | . . . . . . . . . . . . . . . . Crushed 5 | . . . 3 . . . 2 . . . . . . . . Highest Temperature 303 | 54 45 . 8 . . 2 157 192 303 . . . 186 8 18 Average Temperature 54 | 15 15 . 3 . . 2 32 67 120 . . . 100 5 8 Received Heat Transfer 2379 | . 288 . 387 . . 153 1026 261 153 . 6 . 6 72 27 Siege Activations . | . . . . . . . . . . . . . . . . Martial Activations . | . . . . . . . . . . . . . . . . Shielding Activations . | . . . . . . . . . . . . . . . . Robots Disrupted . | . . . . . . . . . . . . . . . . Combat Hostiles . | . . . . . . . . . . . . . . . . Robots Corrupted 3 | . . . 1 . . . . . . . . . . 1 1 Combat Hostiles . | . . . . . . . . . . . . . . . . Parts Fried 8 | . . . 2 . . . . . . . . . . 1 5 Impact Corruptions 8 | . . . 1 . . . . . . . . . . 2 5 Robots Melted . | . . . . . . . . . . . . . . . . Combat Hostiles . | . . . . . . . . . . . . . . . . Parts Melted 7 | 2 2 . . . . . . 3 . . . . . . . Heat Transferred 3921 | 275 1500 . . . . . . 1443 629 . . . . . 74 Parts Sabotaged . | . . . . . . . . . . . . . . . . Parts Stolen . | . . . . . . . . . . . . . . . . Parts Stripped . | . . . . . . . . . . . . . . . . Power Chain Reactions . | . . . . . . . . . . . . . . . . Alert | -11 -10 -10 -9 -9 -9 -8 -8 -8 -8 -8 -6 -6 -6 -5 -5 ------- Run | Yrd Mat Min Mat Min Exi Min Mat Sto Rec Scr Fac Was Fac Fac Ext Maximum Alert Level 2 | . . . 1 . . . 2 2 . . . . . . . Low Security (%) 86 | 100 100 100 97 100 . 100 70 2 100 . 100 100 100 100 100 Level 1 9 | . . . 2 . . . 19 76 . . . . . . . Level 2 3 | . . . . . . . 10 21 . . . . . . . Level 3 . | . . . . . . . . . . . . . . . . Level 4 . | . . . . . . . . . . . . . . . . Level 5 . | . . . . . . . . . . . . . . . . High Security . | . . . . . . . . . . . . . . . . Max Security . | . . . . . . . . . . . . . . . . Peak Influence 488 | 5 170 109 204 61 . 111 457 488 185 . 148 56 83 77 111 Initial 185 | . . 49 11 61 . . . 184 185 . . 41 39 29 28 Average 92 | 1 65 71 112 16 . 11 141 329 49 . 49 46 37 29 43 Influence Increases 4987 | 15 505 70 801 . . 256 930 706 340 . 462 15 225 357 305 Destroy 0b10 Robot/C 2340 | . 300 60 440 . . 180 620 360 140 . 80 . 20 20 120 Destroy 0b10 Robot/NC 350 | 15 15 . 75 . . . 45 60 20 . 25 . 15 45 35 Destroy Leader 620 | . 72 10 162 . . 30 168 102 . . 16 . 16 24 20 Allied During Kill 38 | . . . 5 . . 16 . . 1 . 2 . . . 14 Successful Hack 242 | . 42 . 26 . . . 19 12 28 . 26 . 60 24 5 Select Force Hacks 320 | . 60 . 30 . . . 30 30 150 . 20 . . . . Disable Machine 105 | . . . 15 . . . 15 75 . . . . . . . Destroy Structure 222 | . 1 . 3 . . . 18 7 1 . 53 . 9 64 66 Partial Spotted 315 | . . . . . . . . 15 . . 150 15 30 60 45 Lose Combat Pursuer 435 | . 15 . 45 . . 30 15 45 . . 90 . 75 120 . Influence Decreases 4987 | 15 376 170 672 158 . 256 492 668 816 . 344 77 220 360 363 Entered New Map 896 | . . 80 18 97 . . . 254 291 . . 77 17 32 30 Time Decay 3590 | 15 371 90 614 61 . 196 442 404 515 . 284 . 170 222 206 Lost Part 152 | . 5 . 20 . . . 50 10 10 . . . . 10 47 Lost Ally 260 | . . . 20 . . 60 . . . . 60 . 20 20 80 Purge Threat 89 | . . . . . . . . . . . . . 13 76 . Squads Dispatched 61 | . 5 . 7 . . . 8 2 . . 17 . 10 9 3 Investigation 34 | . 4 . 3 . . . 3 1 . . 11 . 7 5 . Extermination 7 | . . . . . . . . . . . 4 . 1 2 . Reinforcement 16 | . 1 . 4 . . . 1 1 . . 2 . 2 2 3 Assault 1 | . . . . . . . 1 . . . . . . . . Garrison 3 | . . . . . . . 3 . . . . . . . . Intercept . | . . . . . . . . . . . . . . . . Searches Triggered . | . . . . . . . . . . . . . . . . Construction Impeded 2 | . . . . . . . . . . . . . . . 2 Haulers Reinforced 1 | . . . . . . . . . . . . . 1 . . Active Scanning Responses . | . . . . . . . . . . . . . . . . Cargo Convoy Interrupts . | . . . . . . . . . . . . . . . . Stealth | -11 -10 -10 -9 -9 -9 -8 -8 -8 -8 -8 -6 -6 -6 -5 -5 --------- Run | Yrd Mat Min Mat Min Exi Min Mat Sto Rec Scr Fac Was Fac Fac Ext Distress Signals 24 | . 5 . 2 . . . 4 7 . . 3 . . 1 2 Communications Jammed . | . . . . . . . . . . . . . . . . Distress Signals . | . . . . . . . . . . . . . . . . Times Spotted 240 | . 27 2 34 . . 8 54 29 7 . 21 3 10 24 21 Peak Tracking Total 13 | . 4 2 4 . . 4 6 4 3 . 11 3 4 10 13 Tactical Retreats 21 | . 1 . 3 . . 2 1 2 . . 4 . 3 5 . Traps | -11 -10 -10 -9 -9 -9 -8 -8 -8 -8 -8 -6 -6 -6 -5 -5 ------- Run | Yrd Mat Min Mat Min Exi Min Mat Sto Rec Scr Fac Was Fac Fac Ext Traps Triggered 14 | . 2 . 2 . . . 3 . . . 3 . 1 . 3 Indirectly . | . . . . . . . . . . . . . . . . Trap Hack Attempts . | . . . . . . . . . . . . . . . . Triggered . | . . . . . . . . . . . . . . . . Disarmed . | . . . . . . . . . . . . . . . . Reprogrammed . | . . . . . . . . . . . . . . . . Reused . | . . . . . . . . . . . . . . . . Traps Extracted . | . . . . . . . . . . . . . . . . Installed . | . . . . . . . . . . . . . . . . Triggered . | . . . . . . . . . . . . . . . . Machines | -11 -10 -10 -9 -9 -9 -8 -8 -8 -8 -8 -6 -6 -6 -5 -5 ---------- Run | Yrd Mat Min Mat Min Exi Min Mat Sto Rec Scr Fac Was Fac Fac Ext Machines Disabled 8 | . . . 1 . . . 1 5 . . . . . . 1 Max in Single Turn 1 | . . . . . . . 1 1 . . . . . . 1 Garrison Access 1 | . . . . . . . . . . . . . . 1 . Machines Repaired . | . . . . . . . . . . . . . . . . Machines Dismantled . | . . . . . . . . . . . . . . . . Machines Sabotaged . | . . . . . . . . . . . . . . . . Overloaded Fab Kills . | . . . . . . . . . . . . . . . . Hacking | -11 -10 -10 -9 -9 -9 -8 -8 -8 -8 -8 -6 -6 -6 -5 -5 --------- Run | Yrd Mat Min Mat Min Exi Min Mat Sto Rec Scr Fac Was Fac Fac Ext Machines Accessed 98 | . 8 . 9 . 1 . 9 5 11 4 16 . 15 18 2 Terminals 53 | . 6 . 6 . . . 6 4 6 . 4 . 9 10 2 Fabricators 11 | . . . . . . . . . . . 6 . 3 2 . Repair Stations 3 | . . . 1 . . . 1 . . . . . 1 . . Recycling Units 19 | . 2 . 1 . . . 1 1 5 . 4 . 1 4 . Scanalyzers 6 | . . . 1 . . . 1 . . . 2 . 1 1 . Garrison Access 1 | . . . . . . . . . . . . . . 1 . Total Hacks 298 | . 25 . 23 . 4 . 34 11 21 21 42 . 66 47 4 Successful 190 | . 13 . 9 . 4 . 24 5 12 21 25 . 41 34 2 Failed 107 | . 12 . 14 . . . 10 6 9 . 16 . 25 13 2 Catastrophic 8 | . . . 3 . . . . 1 1 . 2 . . 1 . Database Lockouts 1 | . . . . . . . . . . . 1 . . . . Manual 168 | . 23 . 14 . . . 18 5 17 . 21 . 47 23 . Terminals 175 | . 22 . 17 . . . 22 9 16 . 12 . 43 30 4 Fabricators 36 | . . . . . . . . . . . 15 . 15 6 . Repair Stations 9 | . . . 2 . . . 5 . . . . . 2 . . Recycling Units 29 | . 3 . 1 . . . 1 2 5 . 9 . 3 5 . Scanalyzers 22 | . . . 3 . . . 6 . . . 6 . 3 4 . Garrison Access 2 | . . . . . . . . . . . . . . 2 . Terminal Hacks 81 | . 4 . 1 . 4 . 6 3 1 21 3 . 22 14 2 Record 22 | . . . . . 4 . . . . 16 . . . 2 . Part Schematic 7 | . 1 . . . . . . . 1 . 1 . 4 . . Robot Schematic 1 | . 1 . . . . . . . . . . . . . . Robot Analysis 5 | . . . . . . . . . . 5 . . . . . Prototype ID Bank 2 | . . . . . . . . 1 . . 1 . . . . Open Door 3 | . . . . . . . . 1 . . . . . . 2 Level Access Points 1 | . . . . . . . . . . . . . 1 . . Branch Access Points 6 | . . . 1 . . . 1 1 . . 1 . 1 1 . Emergency Access Points 2 | . . . . . . . . . . . . . 1 1 . Terminal Index 3 | . . . . . . . 1 . . . . . 1 1 . Fabricator Index 1 | . . . . . . . . . . . . . . 1 . Recycling Unit Index 2 | . 1 . . . . . . . . . . . . 1 . Scanalyzer Index 1 | . . . . . . . . . . . . . 1 . . Alert Level 1 | . . . . . . . . . . . . . . 1 . Unreport Threat 3 | . . . . . . . . . . . . . 1 2 . Locate Traps 4 | . 1 . . . . . 2 . . . . . 1 . . Dispatch Records 1 | . . . . . . . . . . . . . 1 . . Maintenance Status 1 | . . . . . . . . . . . . . 1 . . Patrol Status 1 | . . . . . . . . . . . . . 1 . . Reinforcement Status 1 | . . . . . . . . . . . . . 1 . . Recall Investigation 4 | . . . . . . . . . . . . . 3 1 . Recall Extermination 3 | . . . . . . . . . . . . . 1 2 . Recall Reinforcements 2 | . . . . . . . . . . . . . 2 . . Hauler Manifests 1 | . . . . . . . 1 . . . . . . . . Zone Layout 3 | . . . . . . . 1 . . . . . 1 1 . Fabricator Hacks 15 | . . . . . . . . . . . 6 . 6 3 . Network Status 2 | . . . . . . . . . . . 1 . 1 . . Load Schematic 8 | . . . . . . . . . . . 3 . 4 1 . Build 5 | . . . . . . . . . . . 2 . 1 2 . Repair Station Hacks 4 | . . . 1 . . . 3 . . . . . . . . Scan Component 3 | . . . 1 . . . 2 . . . . . . . . Repair 1 | . . . . . . . 1 . . . . . . . . Recycling Unit Hacks 2 | . . . . . . . . . . . 1 . 1 . . Retrieve Components 2 | . . . . . . . . . . . 1 . 1 . . Scanalyzer 18 | . . . 3 . . . 6 . . . 4 . 1 4 . Insert Component 7 | . . . 2 . . . 2 . . . 1 . 1 1 . Analyze 7 | . . . 1 . . . 3 . . . 2 . . 1 . Retrieve Study 4 | . . . . . . . 1 . . . 1 . . 2 . Garrison Access Hacks 1 | . . . . . . . . . . . . . . 1 . Seal Access 1 | . . . . . . . . . . . . . . 1 . Unauthorized Hacks 69 | . 9 . 4 . . . 9 2 11 . 11 . 11 12 . Terminals 39 | . 7 . 3 . . . 8 1 6 . 3 . 5 6 . Assimilate 5 | . . . . . . . . . . . 1 . 2 2 . Botnet 11 | . 2 . . . . . 1 . 1 . 1 . 3 3 . Operators 3 | . . . . . . . 1 . . . 1 . . 1 . Skim 20 | . 5 . 3 . . . 6 1 5 . . . . . . Fabricators 11 | . . . . . . . . . . . 5 . 4 2 . Prioritize 4 | . . . . . . . . . . . 1 . 1 2 . Download 1 | . . . . . . . . . . . 1 . . . . Recompile 6 | . . . . . . . . . . . 3 . 3 . . Repair Stations 1 | . . . . . . . . . . . . . 1 . . Patch 1 | . . . . . . . . . . . . . 1 . . Recycling Units 18 | . 2 . 1 . . . 1 1 5 . 3 . 1 4 . Tunnel 10 | . 2 . 1 . . . 1 1 5 . . . . . . Fedlink 7 | . . . . . . . . . . . 3 . 1 3 . Scraphulk 1 | . . . . . . . . . . . . . . 1 . Scanalyzers . | . . . . . . . . . . . . . . . . Garrison Access . | . . . . . . . . . . . . . . . . Data Cores Recovered 2 | . . . . . . . . 1 . . 1 . . . . Used . | . . . . . . . . . . . . . . . . Hacking Detections 71 | . 5 . 8 . . . 7 5 6 . 13 . 13 14 . Full Trace Events 10 | . . . 1 . . . 1 . 1 . 4 . 2 1 . Feedback Events . | . . . . . . . . . . . . . . . . Feedback Blocked . | . . . . . . . . . . . . . . . . Robot Schematics Acquired 1 | . 1 . . . . . . . . . . . . . . Robots Built . | . . . . . . . . . . . . . . . . Authchips . | . . . . . . . . . . . . . . . . Time . | . . . . . . . . . . . . . . . . Total Robot Build Rating . | . . . . . . . . . . . . . . . . Part Schematics Acquired 13 | . 1 . 1 . . . 2 . 1 . 3 . 4 1 . Parts Built 8 | . . . . . . . . . . . 3 . 2 3 . Authchips 3 | . . . . . . . . . . . 1 . 1 1 . Time 263 | . . . . . . . . . . . 88 . 21 154 . Total Part Build Rating 53 | . . . . . . . . . . . 23 . 8 22 . Part Studies Acquired 4 | . . . . . . . 1 . . . 1 . . 2 . Parts Repaired 1 | . . . . . . . 1 . . . . . . . . Time 26 | . . . . . . . 26 . . . . . . . . Parts Recycled . | . . . . . . . . . . . . . . . . Recycled Matter . | . . . . . . . . . . . . . . . . Retrieved Matter . | . . . . . . . . . . . . . . . . Retrieved Components 3 | . . . . . . . . . . . 3 . . . . Parts Scanalyzed 6 | . . . 1 . . . 2 . . . 1 . 1 1 . Part Schematics Acquired 5 | . . . 1 . . . 2 . . . 1 . . 1 . Parts Damaged . | . . . . . . . . . . . . . . . . Bothacking | -11 -10 -10 -9 -9 -9 -8 -8 -8 -8 -8 -6 -6 -6 -5 -5 ------------ Run | Yrd Mat Min Mat Min Exi Min Mat Sto Rec Scr Fac Was Fac Fac Ext Used RIF Installer . | . . . . . . . . . . . . . . . . Robots Hacked 3 | . . . . . . . . . . . 3 . . . . Non-combat 3 | . . . . . . . . . . . 3 . . . . Combat . | . . . . . . . . . . . . . . . . Robot Hacks Applied 4 | . . . . . . . . . . . 4 . . . . parse_system 1 | . . . . . . . . . . . 1 . . . . find_chute 1 | . . . . . . . . . . . 1 . . . . find_fabricator 2 | . . . . . . . . . . . 2 . . . . Relay Couplers Released . | . . . . . . . . . . . . . . . . Fabnet Peak Effective % . | . . . . . . . . . . . . . . . . Robots Rewired 20 | . . . . . . . . . 17 . . . . . 3 Allies Hacked . | . . . . . . . . . . . . . . . . Hacks Repelled . | . . . . . . . . . . . . . . . . Allies | -11 -10 -10 -9 -9 -9 -8 -8 -8 -8 -8 -6 -6 -6 -5 -5 -------- Run | Yrd Mat Min Mat Min Exi Min Mat Sto Rec Scr Fac Was Fac Fac Ext Total Allies 35 | . . 1 . 3 . . . . 17 5 . . 2 2 5 Largest Group 22 | . . 1 1 3 3 3 . . 17 22 3 . 1 1 5 Highest-Rated Group 577 | . . 31 31 40 40 40 . . 342 577 141 . 10 26 160 Highest-Rated Ally 47 | . . 31 31 16 16 16 . . 34 47 47 . 10 26 39 Total Orders 8 | . . . . . . . . . . 5 . . . . 3 STAY 2 | . . . . . . . . . . 2 . . . . . FOLLOW 3 | . . . . . . . . . . 3 . . . . . EXPLORE 2 | . . . . . . . . . . . . . . . 2 RETURN 1 | . . . . . . . . . . . . . . . 1 Ally Attacks 116 | . . . 13 . . 25 . . . . 33 . . . 45 Total Damage 1891 | . . . 208 . . 205 . . . . 573 . . . 905 Kills 14 | . . . 3 . . 4 . . . . 4 . . . 3 Allies Corrupted 1 | . . . . . . 1 . . . . . . . . . Allies Melted 1 | . . . . . . . . . . . . . . . 1 Intel | -11 -10 -10 -9 -9 -9 -8 -8 -8 -8 -8 -6 -6 -6 -5 -5 ------- Run | Yrd Mat Min Mat Min Exi Min Mat Sto Rec Scr Fac Was Fac Fac Ext Active Infowar (turns) 6525 | 18 102 2 1874 265 440 1201 672 . . . 813 17 357 576 188 Optics 188 | . . . . . . . . . . . . . . . 188 Sensors 1765 | . . 2 . . . . . . . . 813 17 357 576 . Seismic 4572 | 18 102 . 1874 265 440 1201 672 . . . . . . . . Robot Analysis Total 5 | . . . . . . . . . . 5 . . . . . Derelict Logs Recovered . | . . . . . . . . . . . . . . . . Drone Launches 3 | . . . . . . . . . . . . . . . 3 Drone Recoveries 2 | . . . . . . . . . . . . . . . 2 Exploration | -11 -10 -10 -9 -9 -9 -8 -8 -8 -8 -8 -6 -6 -6 -5 -5 ------------- Run | Yrd Mat Min Mat Min Exi Min Mat Sto Rec Scr Fac Was Fac Fac Ext Turns Passed 16826 | 100 1038 192 2021 265 440 1201 2010 979 2238 4071 824 17 359 584 487 Spaces Moved 11030 | 42 351 100 805 109 183 426 598 295 727 1881 2021 71 1069 1573 779 Core 5 | 5 . . . . . . . . . . . . . . . Treads 4915 | 37 351 100 805 109 183 426 598 295 727 1284 . . . . . Legs . | . . . . . . . . . . . . . . . . Wheels 597 | . . . . . . . . . . 597 . . . . . Hover . | . . . . . . . . . . . . . . . . Flight 5513 | . . . . . . . . . . . 2021 71 1069 1573 779 Fastest Speed 23 | 50 160 160 160 240 240 240 235 236 235 140 23 23 23 23 24 Average Speed 118 | 146 160 160 199 240 240 240 238 239 235 202 23 23 23 23 24 Slowest Speed 317 | 160 160 160 240 240 240 240 240 240 236 317 26 23 23 24 26 Overloaded Moves . | . . . . . . . . . . . . . . . . Propulsion Burnouts . | . . . . . . . . . . . . . . . . Robots Hopped 59 | . . . . . . . . . . . 16 . 12 24 7 Potential Cave-ins . | . . . . . . . . . . . . . . . . Cave-ins Triggered . | . . . . . . . . . . . . . . . . Exploration Rate (%) 57 | 4 67 25 74 36 57 91 53 56 96 88 53 79 31 46 56 Regions Visited 15 Branch Regions 8 Pre-discovered Areas 19 | . 2 . 1 . 1 . 3 1 10 . 1 . . . . Known Exits Taken 8 | . 1 1 1 . . 1 1 1 . . . . 1 1 . Unknown Exits Taken 5 | 1 . . . 1 1 . . . 1 1 . . . . . Scrap Searched 9 | . . . . 1 . 1 . . . 7 . . . . . Spaces Dug 90 | . . . . . . . 3 2 . . 44 . 9 32 . Terrain Destroyed 147 | . . . . . . . 13 2 . . 44 . 9 32 47 Melee 90 | . . . . . . . 3 2 . . 44 . 9 32 . Projectile 3 | . . . . . . . . . . . . . . . 3 AOE 54 | . . . . . . . 10 . . . . . . . 44 Terrain Rammed . | . . . . . . . . . . . . . . . . Walls Destroyed . | . . . . . . . . . . . . . . . . Machines Disabled . | . . . . . . . . . . . . . . . . Actions | -11 -10 -10 -9 -9 -9 -8 -8 -8 -8 -8 -6 -6 -6 -5 -5 --------- Run | Yrd Mat Min Mat Min Exi Min Mat Sto Rec Scr Fac Was Fac Fac Ext Total 13664 | 63 713 115 1037 114 186 549 981 442 1197 2139 2271 70 1135 1653 999 Wait 1426 | 3 256 . 72 2 . 86 191 33 279 178 128 . 40 30 128 Move 10906 | 42 350 99 804 108 182 425 598 294 726 1880 1990 70 1044 1529 765 Hop 53 | . . . . . . . . . . . 15 . 12 19 7 Pick Up 127 | 1 22 . 15 2 2 2 18 9 2 34 8 . 7 5 . Fast Attach 60 | 7 4 2 4 . . . 12 5 . 7 7 . 2 4 6 Attach 34 | 1 2 . 5 . . . 7 . 1 2 11 . 1 2 2 Detach 9 | . . 1 1 . . . 1 . 1 1 1 . . 1 2 Swap 75 | . 5 1 22 . . 2 17 10 3 3 6 . 2 3 1 Drop 152 | 2 12 3 18 2 2 4 27 20 3 20 18 . 9 9 3 Fire 432 | 7 58 9 90 . . 29 95 61 19 4 . . . . 60 Melee 162 | . . . . . . . 3 8 8 10 57 . 18 51 7 Ram . | . . . . . . . . . . . . . . . . Kick . | . . . . . . . . . . . . . . . . Crush 27 | . 4 . 6 . . 1 11 2 3 . . . . . . Escape Stasis 37 | . . . . . . . . . . . 30 . . . 7 Rewire 164 | . . . . . . . 1 . 152 . . . . . 11 Trap . | . . . . . . . . . . . . . . . . Miscellaneous . | . . . . . . . . . . . . . . . . Route ------- -11/Scrapyard -10/Materials (discovered 6 exits: *Mat x3 / *Min x2 / [*Sub]) -10/Mines (discovered 2 exits: *Mat x2) -9/Materials (discovered 3 exits: *Mat x2 / *Min) -9/Mines -9/Exiles -8/Mines -8/Materials (discovered 3 exits: *Fac / *Sto x2) -8/Storage (discovered 2 exits: Fac / *Rec) -8/Recycling (discovered 2 exits: *Fac / *Scr) -8/Scraptown (discovered 2 exits: *Fac x2) -6/Factory (discovered 2 exits: Low x2) -6/Waste -6/Factory (discovered 6 exits: *Fac x4 / Low x2) -5/Factory (discovered 6 exits: *Fac x2 / *Upp x2 / *Ext x2) -5/Extension History --------- Turn | Location | Event 5 | -11/Scrapyard | Discovered new exit (range 16) 101 | -11/Scrapyard | Entered Materials 311 | -10/Materials | Build established: Mutant 379 | -10/Materials | Discovered new exit (range 4) 717 | -10/Materials | Discovered new exit (range 7) 784 | -10/Materials | Identified exit to Mines 835 | -10/Materials | Discovered new exit (range 11) 852 | -10/Materials | Learned location of 1 exit from Storage 961 | -10/Materials | Learned 2 Storage zone layouts 1001 | -10/Materials | Learned location of 2 exits from Subcaves 1052 | -10/Materials | Identified exit to Materials 1139 | -10/Materials | Entered Mines 1218 | -10/Mines | Found a damaged Exp. Sensor Array with a note attached 1221 | -10/Mines | Found Prototype Device 1221 | -10/Mines | Identified Exp. Sensor Array 1308 | -10/Mines | Received a Mining Laser from a helpful Derelict 1331 | -10/Mines | Entered Materials 1331 | -9/Materials | Accompanied by 1 ally 1331 | -9/Materials | Evolved 2 slots: Propulsion x1, Utility x1 1332 | -9/Materials | Identified exit to Materials 1332 | -9/Materials | Identified exit to Mines 2638 | -9/Materials | Build established: Scavenger-Mutant 2900 | -9/Materials | Discovered exit to Materials (range 10) 3352 | -9/Materials | Entered Mines 3367 | -9/Mines | Assisted by bots powering up and referring to "LRC-V3" 3439 | -9/Mines | Received a Rocket Launcher from a helpful Derelict 3603 | -9/Mines | Deemed a non-threat by the Exiles lab entrance 3603 | -9/Mines | Discovered new exit (range 5) 3617 | -9/Mines | Entered Exiles 3617 | -9/Exiles | Accompanied by 3 allies 3677 | -9/Exiles | Met 8R-AWN 3718 | -9/Exiles | Met EX-HEX 3809 | -9/Exiles | Met EX-DEC 3824 | -9/Exiles | Learned location of Zion (-6) 4028 | -9/Exiles | Discovered new exit (range 14) 4057 | -9/Exiles | Entered Mines 4057 | -8/Mines | Accompanied by 3 allies 4347 | -8/Mines | Lost 3 allies 5220 | -8/Mines | Discovered exit to Materials (range 16) 5258 | -8/Mines | Entered Materials 5258 | -8/Materials | Evolved 2 slots: Propulsion x1, Utility x1 5461 | -8/Materials | Identified exit to Storage 6123 | -8/Materials | Repaired Lgt. Treads 6312 | -8/Materials | Discovered new exit (range 11) 6607 | -8/Materials | Garrison activated, responded to threat 6884 | -8/Materials | Build established: Mutant 7180 | -8/Materials | Learned Factory emergency access door positions 7218 | -8/Materials | Learned 2 Storage zone layouts 7258 | -8/Materials | First assault squad dispatched 7266 | -8/Materials | Core integrity fell below 50% 7268 | -8/Materials | Entered Storage 7269 | -8/Storage | Identified exit to Factory 7270 | -8/Storage | Identified exit to Recycling 7423 | -8/Storage | Build established: Scavenger-Mutant 8182 | -8/Storage | Used back door to open Recycling access 8247 | -8/Storage | Entered Recycling 8723 | -8/Recycling | Scanned before Scraplab entrance 9158 | -8/Recycling | Discovered new exit (range 16) 9585 | -8/Recycling | Learned 2 Lower Caves zone layouts 9796 | -8/Recycling | Learned Factory stockpile data 10277 | -8/Recycling | Build established: Commander-Mutant 10410 | -8/Recycling | Entered Scraplab 10429 | -8/Recycling | Discovered new exit (range 2) 10485 | -8/Recycling | Entered Scraptown 10485 | -8/Scraptown | Accompanied by 17 allies 10485 | -8/Scraptown | System corruption cleaned by C-Scrubber 10792 | -8/Scraptown | Visited Supply Room 10844 | -8/Scraptown | Visited Assassins FH 11236 | -8/Scraptown | Discovered new exit (range 11) 11316 | -8/Scraptown | Visited The Evicted 11425 | -8/Scraptown | Visited Symbiants 11440 | -8/Scraptown | Visited Shadow of the Wyrm 11494 | -8/Scraptown | Visited TADAMA 11522 | -8/Scraptown | Visited CPS Storage 11928 | -8/Scraptown | Visited UFD Registry 11928 | -8/Scraptown | Registered with UFD as "Waveblaster" 11989 | -8/Scraptown | Visited Abandonware Association 12013 | -8/Scraptown | Learned abandonware demo "REVENGE.EXE" 12065 | -8/Scraptown | Visited Science Testing Area 12126 | -8/Scraptown | Visited Research Penetration Think Tank 12178 | -8/Scraptown | Visited DA-N13 Charitable Foundation 12209 | -8/Scraptown | Visited A0-MCA Data Center 12249 | -8/Scraptown | Visited Analyses Database 12303 | -8/Scraptown | Visited Scrapoid Pod Storage 12343 | -8/Scraptown | Visited Derelict Rescue Squad 12412 | -8/Scraptown | Visited Curators Association 12938 | -8/Scraptown | Found DCF Scrap (28 items) 13083 | -8/Scraptown | Found Scrapoid Pod 13313 | -8/Scraptown | Scrapoid Pod released 08S05-D (x5) 14018 | -8/Scraptown | Attached CPS modules to Grenadier 3a. 14020 | -8/Scraptown | Attached CPS modules to 08S03-D. 14093 | -8/Scraptown | Attached CPS modules to Grenadier 3b. 14129 | -8/Scraptown | Attached CPS modules to Transporter 3a. 14436 | -8/Scraptown | Met Optimus 14436 | -8/Scraptown | Accepted into 0bPrime 14549 | -8/Scraptown | Discovered new exit (range 5) 14556 | -8/Scraptown | Entered Factory 14556 | -6/Factory | Accompanied by 3 allies 14556 | -6/Factory | Evolved 4 slots: Propulsion x1, Utility x3 14606 | -6/Factory | Loaded intel: 8 recycling unit locations 14792 | -6/Factory | Learned location of Protoforge (-2) 14804 | -6/Factory | Fabricated Mic. Antimatter Reactor? 14891 | -6/Factory | Build established: Hacker-Sprinter 14916 | -6/Factory | Fabricated Centrium Greatsword (x1) 14924 | -6/Factory | Identified exit to Lower Caves 15379 | -6/Factory | Central database locked down 15380 | -6/Factory | Sucked down chute 15380 | -6/Factory | Entered Waste 15388 | -6/Waste | Spotted C-40 Crusher 15389 | -6/Waste | Spotted C-40 Crusher 15389 | -6/Waste | Spotted C-40 Crusher 15390 | -6/Waste | Spotted C-40 Crusher 15391 | -6/Waste | Spotted C-40 Crusher 15394 | -6/Waste | Discovered new exit (range 13) 15395 | -6/Waste | EMP discharged 15396 | -6/Waste | Identified exit to Factory 15397 | -6/Waste | Entered Factory 15435 | -6/Factory | Loaded intel: 8 recycling unit locations 15513 | -6/Factory | Found Launcher Loader 15564 | -6/Factory | Identified exit to Factory 15740 | -6/Factory | Fabricated Matter Filter (x2) 15756 | -6/Factory | Entered another Factory area 15756 | -5/Factory | Evolved 2 slots: Propulsion x1, Weapon x1 15774 | -5/Factory | Identified exit to Upper Caves 15774 | -5/Factory | Identified exit to Extension 15948 | -5/Factory | Fabricated Particle Reactor? 16058 | -5/Factory | Loaded intel: 8 recycling unit locations 16079 | -5/Factory | Discovered new exit (range 9) 16099 | -5/Factory | Discovered new exit (range 8) 16100 | -5/Factory | Identified exit to Factory 16234 | -5/Factory | Fabricated Smartbomb Launcher (x1) 16340 | -5/Factory | Entered Extension 16358 | -5/Extension | Rescued a captive Derelict 16447 | -5/Extension | Rescued a captive Derelict 16613 | -5/Extension | Spotted B-75 Beast 16643 | -5/Extension | Spotted B-75 Beast 16651 | -5/Extension | Attached CPS modules to SC-ZTP(h). 16691 | -5/Extension | Lost 6 allies 16747 | -5/Extension | Destroyed B-75 Beast 16790 | -5/Extension | Disrupted transfer network 16827 | -5/Extension | Self-destructed Last Messages --------------- 16795_ Acquired 5 matter. 16796_ Acquired 2 matter. 16796_ R-10 Processor destroyed. 16797_ Acquired 62 matter. 16797_ U-05 Engineer builds a Wall. 16798_ Acquired 7 matter. 16798_ Bore Cannon destroyed. 16805_ U-05 Engineer builds a Wall. 16808_ Knocked back. 16811_ U-05 Engineer builds a Wall. 16818_ Slug penetrates H-66 Slayer. 16818_ Slug penetrates Wall. 16818_ Lrn. Tractor Beam destroyed. 16818_ Slug penetrates Wall. 16821_ Nuclear Pulse Array+ destroyed. 16821_ S-27 Virus destroyed. 16823_ Slug penetrates Sealed Heavy Doors. 16827_ Triggered Stasis Trap. 16827_ A bubble of rippling energy engulfs the area. 16827_ Field strength at 94. Map ----- +----------------------------------------------------+ | ?????????????????????????????????????????????????? | | ?????????????????????????????????????????????????? | | #####????????????????????????????????????????????? | | #????????????????????????????????????????????? | | #????????????????????????????????????????????? | | #???###??????????????????????????????????????? | | #???# #??????????????????????????????????????? | | #???# ##?????????????????????????????????????? | | #???# T#?????????????????????????????????????? | | ###+##### ####?????????##????????????????????????? | | #????????? ????????????????????????? | | #????????? ????????????????????????? | | #????????? ????????????????????????? | | #????????? ????????????????????????? | | ##???????# ????????????????????????? | | %T#???????# ????????????????????????? | | ##???????# ????????????????????????? | | ###### #????????# #????????????????????????? | | ?????# #????????# #????????????????????????? | | ?????# #????????# #????????????????????????? | | ?????# #????????# #????????????????????????? | | ?????# #????????# #####+##?????????????????? | | ?????# #????????# # ###???????????????? | | ?????# #????????# # ""#???????????????? | | ?????# #????????# + """ T"#???????????????? | | ?????# #????????# #@"T ""#???????????????? | | ?????####### #????????# # """ ###???????????????? | | ???????????# #????????# # !#?????????????????? | | ???????????# #????????# ##"T"###?????????????????? | | ???????????# #?######?# #?"""#???????????????????? | | ?????????### ### ## ### ######???????????????????? | | ?????????#" " "" ""#??????????????????????? | | ?????????# = " " #??????????????????????? | | ???????? # %% #??????????????????????? | | ??###?? # #??????????????????????? | | ########## #####??????????????????? | | ????????????? | | % %% % % ????????????? | | % ??????????? | | % % % % ?????????? | | ????????? | | ##########% ###############????????? | | ??#### # #??????????????????????? | | ?????????# #??????????????????????? | | ?????????# #??????????????????????? | | ?????????# #??????????????????????? | | ?????????######T#"""#######??????????????????????? | | ??????????????###????????????????????????????????? | | ?????????????????????????????????????????????????? | | | +----------------------------------------------------+ Best States ------------- Heat Dissipation 59 Energy Generation 16 Energy Capacity 290 Matter Stores 300 Matter Capacity 300 Sight Range 22 Robot Scan Range 20 Terrain Scan Density 10 Armor Coverage 225 Resistance: KI 20 Resistance: EM 15 Propulsion Shielding 66 Evasion (%) 65 Targeting Accuracy 14 Recoil Reduction 4 Matter Filtering 30 Offensive Hacking 42 Defensive Hacking 12 Authchip Count 4 Item Schematics ----------------- Hcp. Storage Unit | -10/Materials | Hacked Imp. Flight Unit | -9/Materials | Scanalyzed Exp. Sensor Array | -8/Materials | Scanalyzed Hacking Suite | -8/Materials | Scanalyzed Cesium-ion Thruster | -8/Recycling | Hacked Cmb. Airjet | -6/Factory | Scanalyzed Centrium Greatsword | -6/Factory | Downloaded Imp. Linear Gravjet | -6/Factory | Hacked Smartbomb Launcher | -6/Factory | Hacked Launcher Loader | -6/Factory | Hacked Matter Filter | -6/Factory | Hacked Med. Armor Plating | -6/Factory | Hacked Imp. Propulsion Shielding | -5/Factory | Scanalyzed Robot Schematics ------------------ M-13 Machinist | -10/Materials | Hacked Fabricated ------------ Mic. Antimatter Reactor | x2 | -6/Factory | Preloaded Centrium Greatsword | x1 | -6/Factory | Authchip Matter Filter | x2 | -6/Factory | Authchip Particle Reactor | x2 | -5/Factory | Preloaded Smartbomb Launcher | x1 | -5/Factory | Authchip Repaired ---------- Lgt. Treads | 5% | -8/Materials Studied --------- Cesium-ion Thruster | -8/Materials | Hacked Cmb. Airjet | -6/Factory | Hacked Mic. Fission Core | -5/Factory | Hacked Nuclear Pulse Array | -5/Factory | Hacked Alien Tech Used ----------------- None Achievements -------------- None Challenges ------------ None Game ------ Seed GammaThunderSpecial Manual? 0 Play Time 03:14:57 Cumulative 246.4 hours Start 2026.02.01 @ 15:46:41 End 2026.02.02 @ 23:12:31 Sessions 17 Manual Loads 0 Difficulty Rogue Special Mode None Game No. 102 Rogue 97 Adventurer 5 Explorer 0 Win Type - Total 7 Types 3/0/2/1/0/0/0/0/0/1 Lore% 70 Gallery% 72 Achievement% 61 Wizard Run 0 Options --------- Layout 0 ASCII 0 Keyboard 0 Movement Numpad Keybinds 0 Fullscreen 1 Font 18/SmallcapsGlow Map View 76x50 Zoom Use 0% Tactical HUD 1 Map Filters NONE Filters NONE Steam 1 RUN: b5bc6a65-889b-4a97-ae77-7fb77ff6c77c